[Event "RUS-chT Premier League Women 2018"]
[Site "Sochi"]
[Date "2018.05.04"]
[Round "4"]
[White "Baiburina, Kamilla"]
[Black "Denikina, Natalia"]
[Result "1/2-1/2"]
[ECO "B50"]
[WhiteElo "1860"]
[BlackElo "2174"]
[Annotator "NA"]
[PlyCount "158"]
[EventDate "2018.??.??"]
[EventCountry "RUS"]
[SourceTitle "playchess.com"]
[Source "ChessBase"]
[SourceQuality "1"]
[TimeControl "40/5400+30:1800+30"]

1. e4 {[%emt 0:00:00]} c5 {[%emt 0:00:06]} 2. Nf3 {[%emt 0:00:00]} d6 {[%emt 0:00:05]} 3. c3 {[%emt 0:00:00]} Nf6 {[%emt 0:00:08]} 4. Be2 {[%emt 0:00:07]} Nbd7 {[%emt 0:00:12]} 5. Qc2 {[%emt 0:00:39]} Qc7 {[%emt 0:00:10]} 6. O-O {[%emt 0:00:13]} g6 {[%emt 0:00:16] B50: Sicilian: 2...d6, Miscellaneous} (6... b6 7. c4 Bb7 8. Nc3 e6 9. d4 cxd4 10. Nxd4 Be7 11. Be3 Rc8 12. Rfd1 a6 13. f3 O-O 14. Qd2 {½-½ (31) Jones,G (2657)-Hracek,Z (2598) Gjakova 2016}) 7. Re1 {[%emt 0:01:02]} Bg7 {[%emt 0:00:59]} 8. d3 {[%emt 0:00:38]} O-O {[%emt 0:00:57]} 9. Nbd2 {[%emt 0:01:18]} b6 {[%emt 0:02:20]} 10. Nf1 {[%emt 0:00:48]} Bb7 {[%emt 0:00:35]} 11. Ng3 {[%emt 0:00:28]} e5 $146 {[%emt 0:01:56]} 12. Bd2 {[%emt 0:02:22]} d5 {[%emt 0:06:51]} 13. Bf1 {[%emt 0:02:21]} Rfe8 {[%emt 0:05:12]} 14. Qc1 {[%emt 0:04:41]} dxe4 {[%emt 0:05:49]} 15. dxe4 {[%emt 0:00:30]} c4 {[%emt 0:00:09]} 16. Bh6 {[%emt 0:06:48]} Bh8 {[%emt 0:06:50]} 17. h4 {[%emt 0:02:29]} Ng4 {[%emt 0:08:18]} 18. Bg5 {[%emt 0:03:03]} Nf8 {[%emt 0:07:12]} 19. Nh2 {[%emt 0:05:41]} Nxh2 {[%emt 0:01:25]} 20. Kxh2 {[%emt 0:00:50]} Ne6 {[%emt 0:00:50]} 21. Qe3 {[%emt 0:06:29]} Nf4 {[%emt 0:02:10]} 22. f3 {[%emt 0:13:35]} Bg7 {[%emt 0:07:08]} 23. Qf2 {[%emt 0:07:05]} Ne6 {[%emt 0:12:52]} 24. Be3 {[%emt 0:02:13]} Bf6 {[%emt 0:05:14]} 25. Ne2 {[%emt 0:03:58]} Rad8 {[%emt 0:07:02]} 26. a4 {[%emt 0:01:47]} Be7 {[%emt 0:05:18]} 27. Nc1 {[%emt 0:07:22]} Rd7 {[%emt 0:05:53]} 28. a5 {[%emt 0:02:18]} Bc5 {[%emt 0:01:59]} 29. Bxc5 {[%emt 0:05:48]} Nxc5 {[%emt 0:00:10]} 30. Bxc4 {[%emt 0:03:16]} Nxe4 {[%emt 0:00:50]} 31. fxe4 {[%emt 0:00:49]} Qxc4 {[%emt 0:00:05]} 32. Qe3 {[%emt 0:02:52]} Red8 {[%emt 0:03:05]} 33. b3 {[%emt 0:02:36]} Qe6 {[%emt 0:00:16]} 34. Ra2 {[%emt 0:02:29]} Kg7 {[%emt 0:00:56]} 35. axb6 {[%emt 0:00:55]} axb6 {[%emt 0:00:01]} 36. Rf2 {[%emt 0:00:43]} h5 {[%emt 0:01:23]} 37. Qg3 {[%emt 0:02:33]} Rd1 {[%emt 0:00:27]} 38. Rxd1 {[%emt 0:00:58]} Rxd1 {[%emt 0:00:02]} 39. Nd3 {[%emt 0:00:14]} Bxe4 {[%emt 0:02:01]} 40. Qxe5+ {[%emt 0:00:00]} Qxe5+ {[%emt 0:00:04]} 41. Nxe5 {[%emt 0:01:01]} f5 {[%emt 0:00:33]} 42. Nc4 {[%emt 0:04:31]} b5 {[%emt 0:10:58]} 43. Na3 {[%emt 0:05:32]} Bc6 {[%emt 0:00:48]} 44. Nc2 {[%emt 0:07:11]} Rd3 {[%emt 0:00:48]} 45. c4 {[%emt 0:01:11]} bxc4 {[%emt 0:00:44]} 46. Nb4 {[%emt 0:01:01]} Rd6 {[%emt 0:00:44]} 47. bxc4 {[%emt 0:01:13]} Be4 {[%emt 0:00:19]} 48. Nc2 {[%emt 0:01:42]} Rd3 {[%emt 0:01:03]} 49. Re2 {[%emt 0:01:52]} Rc3 {[%emt 0:01:13]} 50. Ne3 {[%emt 0:00:34]} Kf7 {[%emt 0:01:07]} 51. Kg1 {[%emt 0:03:19]} Bd3 {[%emt 0:03:08]} 52. Ra2 {[%emt 0:03:50]} Bxc4 {[%emt 0:01:15]} 53. Nxc4 {[%emt 0:01:40]} Rxc4 {[%emt 0:00:05]} 54. g3 {[%emt 0:00:16]} Rg4 {[%emt 0:00:25]} 55. Kh2 {[%emt 0:00:36]} f4 {[%emt 0:00:10]} 56. gxf4 $17 {[%emt 0:03:44]} Rxf4 {[%emt 0:03:38]} 57. Kg3 {[%emt 0:00:24]} Rg4+ {[%emt 0:00:16]} 58. Kh3 {[%emt 0:00:08]} Re4 {[%emt 0:00:13]} 59. Ra7+ {[%emt 0:01:01]} Kf6 {[%emt 0:00:24]} 60. Ra6+ {[%emt 0:00:54]} Kf5 {[%emt 0:00:12]} 61. Ra5+ {[%emt 0:00:34]} Re5 {[%emt 0:02:48]} 62. Ra3 {[%emt 0:00:28]} Kf4 {[%emt 0:00:13]} 63. Ra4+ {[%emt 0:00:57]} Re4 {[%emt 0:00:33]} 64. Ra6 {[%emt 0:00:20]} Re3+ {[%emt 0:00:07]} 65. Kh2 {[%emt 0:00:11]} Kf5 {[%emt 0:00:16]} 66. Ra5+ {[%emt 0:00:55]} Re5 {[%emt 0:00:44]} 67. Ra6 {[%emt 0:00:51]} Re6 {[%emt 0:01:07]} 68. Ra5+ {[%emt 0:00:51]} Kf4 {[%emt 0:06:42]} 69. Rg5 {[%emt 0:01:34]} Rf6 {[%emt 0:02:49]} 70. Kh3 {[%emt 0:00:42]} Re6 {[%emt 0:00:59]} 71. Kh2 {[%emt 0:00:29]} Ra6 {[%emt 0:00:54]} 72. Kh3 {[%emt 0:00:57]} Kf3 {[%emt 0:01:09]} 73. Rg3+ {[%emt 0:00:40]} Ke4 {[%emt 0:00:18]} 74. Rg5 {[%emt 0:00:09]} Rf6 {[%emt 0:00:26]} 75. Kh2 {[%emt 0:00:53]} Rf2+ {[%emt 0:01:21]} 76. Kh3 {[%emt 0:00:21]} Rf1 {[%emt 0:00:16]} 77. Kg2 {[%emt 0:00:44]} Rf4 {[%emt 0:00:19]} 78. Kh3 {[%emt 0:00:36]} Rf3+ {[%emt 0:00:27]} 79. Kg2 {[%emt 0:00:34]} Rf6 1/2-1/2

[Event "RUS-chT Premier League Women 2018"]
[Site "Sochi"]
[Date "2018.05.07"]
[Round "6"]
[White "Voit, Daria"]
[Black "Tomashevskaya, Lidia"]
[Result "1/2-1/2"]
[ECO "D27"]
[WhiteElo "2382"]
[BlackElo "2146"]
[Annotator "NA"]
[PlyCount "94"]
[EventDate "2018.??.??"]
[EventCountry "RUS"]
[SourceTitle "playchess.com"]
[Source "ChessBase"]
[SourceQuality "1"]
[TimeControl "40/5400+30:1800+30"]

1. Nf3 {[%emt 0:00:00]} d5 {[%emt 0:00:10]} 2. d4 {[%emt 0:00:00]} Nf6 {[%emt 0:00:30]} 3. c4 {[%emt 0:00:00]} c6 {[%emt 0:00:45]} 4. e3 {[%emt 0:00:33]} a6 {[%emt 0:00:30]} 5. Bd3 {[%emt 0:02:09]} dxc4 {[%emt 0:07:24]} 6. Bxc4 {[%emt 0:00:05]} e6 {[%emt 0:00:55]} 7. O-O {[%emt 0:00:46]} c5 {[%emt 0:04:32]} 8. dxc5 {[%emt 0:01:43]} Qxd1 {[%emt 0:00:52]} 9. Rxd1 {[%emt 0:00:04]} Bxc5 {[%emt 0:00:07]} 10. Be2 {[%emt 0:05:03]} Nc6 {[%emt 0:02:24] D27: Queen's Gambit Accepted: Classical main line: 7 e4!? and 7 a4} (10... Nbd7 11. Nbd2 b6 12. Nc4 Bb7 13. b3 O-O {½-½ (12) Le,Q (2737)-Nguyen,N (2630) Riadh 2017}) 11. Nbd2 {[%emt 0:08:29] LiveBook: 37 Games} Ke7 {[%emt 0:05:47]} 12. Ne1 {[%emt 0:03:53]} Rd8 $146 {[%emt 0:14:20]} ({Predecessor:} 12... Ne5 13. b3 Bd7 14. Bb2 Bd6 15. Nef3 Bb5 16. Bxb5 Nxf3+ 17. Nxf3 axb5 18. a3 {½-½ (46) Shimanov,A (2488)-Khusenkhojaev,M (2373) Peterhof 2009}) 13. Nd3 {[%emt 0:03:18]} Bd6 {[%emt 0:05:26]} 14. Nc4 {[%emt 0:00:51]} Bc7 {[%emt 0:00:57]} 15. a4 {[%emt 0:23:02]} Rb8 {[%emt 0:16:47]} 16. a5 {[%emt 0:04:56]} Nd5 {[%emt 0:00:40]} 17. Bd2 {[%emt 0:00:48]} e5 {[%emt 0:09:28]} 18. Nc5 $14 {[%emt 0:13:54]} f5 {[%emt 0:08:03]} 19. f3 {[%emt 0:03:58]} f4 {[%emt 0:02:21]} 20. e4 {[%emt 0:07:52]} Ndb4 {[%emt 0:02:31]} 21. Be1 {[%emt 0:11:58]} Rxd1 {[%emt 0:03:56]} 22. Bxd1 {[%emt 0:00:08]} b5 {[%emt 0:01:33]} 23. axb6 {[%emt 0:02:32]} Bxb6 {[%emt 0:00:04]} 24. Nxb6 {[%emt 0:02:13]} Rxb6 {[%emt 0:00:04]} 25. Na4 {[%emt 0:00:40]} Rb8 {[%emt 0:00:57]} 26. Rc1 {[%emt 0:00:58]} Bd7 {[%emt 0:02:27]} 27. Nc5 {[%emt 0:01:08]} Nd4 {[%emt 0:01:06]} 28. Rc4 {[%emt 0:01:54]} a5 {[%emt 0:00:29]} 29. Bxb4 {[%emt 0:00:42]} Rxb4 {[%emt 0:00:23]} 30. Rxb4 {[%emt 0:00:09]} axb4 {[%emt 0:00:04]} 31. Nd3 {[%emt 0:00:06]} b3 {[%emt 0:02:11]} 32. Nxe5 {[%emt 0:01:18]} Bb5 {[%emt 0:00:04]} 33. g3 {[%emt 0:00:29]} g5 {[%emt 0:00:50]} 34. Kf2 {[%emt 0:00:34]} Ke6 {[%emt 0:01:50]} 35. Ng4 {[%emt 0:00:04]} h5 {[%emt 0:00:32]} 36. Nh6 {[%emt 0:00:03]} fxg3+ {[%emt 0:03:47]} 37. hxg3 {[%emt 0:00:31]} Kf6 {[%emt 0:00:19]} 38. Ke3 {[%emt 0:01:10]} Nc2+ {[%emt 0:02:06]} 39. Kd2 {[%emt 0:00:10]} Bd7 {[%emt 0:00:17]} 40. f4 {[%emt 0:00:00]} gxf4 {[%emt 0:01:49]} 41. gxf4 {[%emt 0:20:45]} Kg6 {[%emt 0:00:59]} 42. Nf5 {[%emt 0:01:33]} Bxf5 {[%emt 0:00:08]} 43. exf5+ {[%emt 0:00:32]} Kxf5 {[%emt 0:00:14]} 44. Bxh5 {[%emt 0:00:22]} Kxf4 {[%emt 0:00:10]} 45. Kc3 {[%emt 0:00:07]} Ke5 {[%emt 0:01:11]} 46. Kxb3 {[%emt 0:00:15]} Ne3 {[%emt 0:00:54]} 47. Bf7 {[%emt 0:00:13]} Nd1 {[%emt 0:00:12]} 1/2-1/2

[Event "RUS-chT Premier League Women 2018"]
[Site "Sochi"]
[Date "2018.05.07"]
[Round "6"]
[White "Belenkaya, Dina"]
[Black "Chan, Naruna"]
[Result "1-0"]
[ECO "B30"]
[WhiteElo "2297"]
[BlackElo "1927"]
[Annotator "NA"]
[PlyCount "71"]
[EventDate "2018.??.??"]
[EventCountry "RUS"]
[SourceTitle "playchess.com"]
[Source "ChessBase"]
[SourceQuality "1"]
[TimeControl "40/5400+30:1800+30"]

1. e4 {[%emt 0:00:00]} c5 {[%emt 0:00:05]} 2. Nf3 {[%emt 0:00:00]} Nc6 {[%emt 0:00:06]} 3. Bb5 {[%emt 0:00:00]} e6 {[%emt 0:00:07]} 4. O-O {[%emt 0:00:00]} Nge7 {[%emt 0:00:04]} 5. Re1 {[%emt 0:00:05]} Nd4 {[%emt 0:00:11]} 6. Nxd4 {[%emt 0:00:53]} cxd4 {[%emt 0:00:06] LiveBook: 180 Games} 7. d3 {[%emt 0:01:16] B30: Sicilian: 2...Nc6 3 Bb5, lines without ...g6} a6 {[%emt 0:00:08]} 8. Ba4 {[%emt 0:00:05]} b5 {[%emt 0:00:05]} 9. Bb3 {[%emt 0:00:03]} Bb7 {[%emt 0:00:24]} 10. Bf4 $146 {[%emt 0:03:13]} ({Predecessor:} 10. Bg5 Qc7 11. Bh4 Ng6 12. Bg3 Bd6 13. c3 Qb6 14. Qh5 Rc8 {½-½ (22) Jones,G (2675)-Iturrizaga Bonelli,E (2624) Dubai 2018}) 10... Nc6 {[%emt 0:00:42]} 11. Nd2 {[%emt 0:00:40]} Be7 {[%emt 0:13:11]} 12. Bg3 {[%emt 0:00:39]} O-O {[%emt 0:00:21]} 13. f4 {[%emt 0:02:14]} d5 {[%emt 0:20:44]} ({Black should try} 13... f5 $11) 14. e5 {[%emt 0:04:31]} (14. exd5 $16 exd5 15. a3) 14... Bh4 {[%emt 0:06:19]} 15. Qg4 {[%emt 0:01:21]} Be7 {[%emt 0:04:02]} 16. Nf3 {[%emt 0:02:04]} Bc8 {[%emt 0:00:00]} 17. Bf2 {[%emt 0:03:26]} Bc5 {[%emt 0:02:54]} 18. Bh4 {[%emt 0:04:59]} Be7 {[%emt 0:01:04]} 19. Bf2 {[%emt 0:05:48]} Bc5 {[%emt 0:00:05]} 20. Ng5 {[%emt 0:03:25]} Bd7 {[%emt 0:09:14]} 21. Kh1 {[%emt 0:02:40]} h6 {[%emt 0:02:37]} 22. Nf3 {[%emt 0:00:11]} Rc8 {[%emt 0:04:50]} 23. Rac1 {[%emt 0:03:22]} a5 {[%emt 0:02:01]} 24. c3 {[%emt 0:04:58]} a4 {[%emt 0:03:44]} 25. Bc2 {[%emt 0:02:17]} Qb6 {[%emt 0:02:17]} 26. Bh4 {[%emt 0:07:14]} Kh7 {[%emt 0:01:56]} 27. a3 $11 {[%emt 0:06:02]} (27. c4 $5) 27... Kh8 {[%emt 0:08:03]} 28. Qh3 {[%emt 0:00:27]} Ne7 {[%emt 0:02:56]} 29. cxd4 {[%emt 0:04:44]} Bxd4 {[%emt 0:03:25]} 30. Bxe7 {[%emt 0:01:36]} Rfe8 {[%emt 0:01:42]} 31. Bg5 {[%emt 0:04:35]} Kh7 {[%emt 0:07:53]} 32. Qh5 {[%emt 0:00:59]} Rh8 {[%emt 0:02:17]} 33. Bb1 {[%emt 0:12:53]} Rxc1 {[%emt 0:01:34]} 34. Rxc1 {[%emt 0:00:01]} Kg8 {[%emt 0:00:32]} 35. Bd8 {[%emt 0:00:53]} Qa7 {[%emt 0:01:16]} 36. Rc7 {[%emt 0:00:38]} 1-0

[Event "RUS-chT Premier League Women 2018"]
[Site "Sochi"]
[Date "2018.05.07"]
[Round "6"]
[White "Bulatova, Kamaliya"]
[Black "Nechaeva, Marina"]
[Result "0-1"]
[ECO "E74"]
[WhiteElo "2121"]
[BlackElo "2407"]
[Annotator "ChessBase"]
[PlyCount "118"]
[EventDate "2018.??.??"]
[EventCountry "RUS"]
[SourceTitle "playchess.com"]
[Source "ChessBase"]
[SourceQuality "1"]
[TimeControl "40/5400+30:1800+30"]

1. d4 {[%emt 0:00:00]} Nf6 {[%emt 0:00:05]} 2. c4 {[%emt 0:00:00]} g6 {[%emt 0:00:04]} 3. Nc3 {[%emt 0:00:00]} Bg7 {[%emt 0:00:04]} 4. e4 {[%emt 0:00:00]} d6 {[%emt 0:00:05]} 5. Be2 {[%emt 0:00:00]} O-O {[%emt 0:00:06]} 6. Be3 {[%emt 0:00:00]} c5 {[%emt 0:11:23]} 7. d5 {[%emt 0:00:02]} a6 {[%emt 0:02:37]} 8. a4 {[%emt 0:04:19]} Qa5 {[%emt 0:02:18]} 9. Bd2 {[%emt 0:04:43]} e6 {[%emt 0:00:47]} 10. Nf3 {[%emt 0:01:05]} exd5 {[%emt 0:00:14]} 11. cxd5 {[%emt 0:09:16]} Qc7 {[%emt 0:04:20]} 12. Bf4 {[%emt 0:07:19]} Re8 {[%emt 0:03:48]} 13. Nd2 {[%emt 0:03:20]} Nbd7 {[%emt 0:00:57]} 14. O-O {[%emt 0:02:35]} Ne5 {[%emt 0:01:30]} 15. Re1 {[%emt 0:09:05]} b6 {[%emt 0:11:14]} 16. Bg3 {[%emt 0:16:10]} g5 {[%emt 0:06:19]} 17. Bxe5 {[%emt 0:00:36]} Rxe5 {[%emt 0:00:04]} 18. Nf3 {[%emt 0:01:42]} Re7 {[%emt 0:00:55]} 19. e5 {[%emt 0:01:53]} Ng4 {[%emt 0:08:20]} 20. e6 {[%emt 0:11:30]} h6 {[%emt 0:11:26]} 21. Bc4 {[%emt 0:05:51]} Nf6 {[%emt 0:05:55]} 22. Qd3 {[%emt 0:01:31]} Bb7 {[%emt 0:04:55]} 23. Qf5 {[%emt 0:05:11]} Rd8 {[%emt 0:09:23]} 24. Rad1 {[%emt 0:05:07]} Qc8 {[%emt 0:06:35]} 25. Rd3 {[%emt 0:05:26]} fxe6 {[%emt 0:03:37]} 26. Rxe6 {[%emt 0:00:59]} Rf7 {[%emt 0:00:28]} 27. Nxg5 {[%emt 0:01:21]} hxg5 {[%emt 0:00:38]} 28. Qxg5 {[%emt 0:01:19]} Re8 {[%emt 0:03:29]} 29. Rde3 {[%emt 0:01:49]} Rxe6 {[%emt 0:01:17]} 30. Rxe6 {[%emt 0:00:45]} Qf8 {[%emt 0:01:24]} 31. Bd3 {[%emt 0:00:43]} Re7 {[%emt 0:00:29]} 32. Qe3 {[%emt 0:01:33]} Rxe6 {[%emt 0:00:38]} 33. Qxe6+ {[%emt 0:00:01]} Kh8 {[%emt 0:00:13]} 34. Qh3+ {[%emt 0:01:02]} Bh6 {[%emt 0:00:23]} 35. Qf5 {[%emt 0:00:28]} Bc8 {[%emt 0:00:51]} 36. Qf3 {[%emt 0:00:28]} Qe7 {[%emt 0:00:31]} 37. Ne4 {[%emt 0:00:41]} Nxe4 {[%emt 0:00:08]} 38. Bxe4 {[%emt 0:00:18]} Qg5 {[%emt 0:00:45]} 39. h4 {[%emt 0:00:47]} Qc1+ {[%emt 0:00:27]} 40. Kh2 {[%emt 0:00:00]} Qf4+ {[%emt 0:00:42]} 41. Qxf4 {[%emt 0:01:37]} Bxf4+ {[%emt 0:00:19]} 42. g3 {[%emt 0:00:01]} Bc1 {[%emt 0:00:31]} 43. b3 {[%emt 0:00:06]} Kg7 {[%emt 0:00:19]} 44. f3 {[%emt 0:01:26]} Kf6 {[%emt 0:02:26]} 45. g4 {[%emt 0:06:26]} Ke5 {[%emt 0:01:11]} 46. Kh3 {[%emt 0:01:17]} b5 {[%emt 0:02:24]} 47. axb5 {[%emt 0:01:00]} axb5 {[%emt 0:00:04]} 48. Bd3 {[%emt 0:00:30]} b4 {[%emt 0:00:36]} 49. h5 {[%emt 0:01:02]} Kxd5 {[%emt 0:05:03]} 50. Kh4 {[%emt 0:00:20]} Be3 {[%emt 0:01:28]} 51. f4 {[%emt 0:01:21]} Bxf4 {[%emt 0:00:39]} 52. g5 {[%emt 0:00:04]} Ke6 {[%emt 0:01:32]} 53. h6 {[%emt 0:00:41]} Ke7 {[%emt 0:07:46]} 54. Kh5 {[%emt 0:00:30]} Be6 {[%emt 0:03:58]} 55. Bc2 {[%emt 0:00:33]} d5 {[%emt 0:01:09]} 56. g6 {[%emt 0:00:13]} Kf6 {[%emt 0:00:16]} 57. g7 {[%emt 0:00:28]} Bf7+ {[%emt 0:00:06]} 58. Bg6 Bxg6+ {[%emt 0:00:05]} 59. Kg4 {[%emt 0:00:52]} Bh7 {[%emt 0:00:05]} 0-1

[Event "RUS-chT Premier League Women 2018"]
[Site "Sochi"]
[Date "2018.05.07"]
[Round "6"]
[White "Trapeznikova, Darya"]
[Black "Ovod, Evgenija"]
[Result "0-1"]
[ECO "A43"]
[WhiteElo "2087"]
[BlackElo "2371"]
[Annotator "NA"]
[PlyCount "56"]
[EventDate "2018.??.??"]
[EventCountry "RUS"]
[SourceTitle "playchess.com"]
[Source "ChessBase"]
[SourceQuality "1"]
[TimeControl "40/5400+30:1800+30"]

1. d4 {[%emt 0:00:00]} e6 {[%emt 0:00:05]} 2. c4 {[%emt 0:00:00]} c5 {[%emt 0:00:06]} 3. Nf3 {[%emt 0:00:16]} cxd4 {[%emt 0:05:48]} 4. Nxd4 {[%emt 0:00:08]} b6 {[%emt 0:00:11]} 5. Nc3 {[%emt 0:01:22]} Bb7 {[%emt 0:00:10]} 6. Qc2 {[%emt 0:07:23]} d6 {[%emt 0:11:12]} 7. e4 {[%emt 0:01:19]} Nd7 {[%emt 0:00:06]} 8. Be2 {[%emt 0:00:43]} h5 {[%emt 0:16:43]} 9. Be3 {[%emt 0:05:51]} a6 {[%emt 0:08:03]} 10. f4 {[%emt 0:02:26]} Ngf6 {[%emt 0:00:30]} 11. O-O-O {[%emt 0:08:47]} Qc7 {[%emt 0:07:05]} 12. Kb1 {[%emt 0:11:42]} Rc8 {[%emt 0:14:29]} 13. Rhe1 {[%emt 0:04:42]} Qb8 {[%emt 0:02:18]} 14. Bg1 {[%emt 0:02:47]} Be7 {[%emt 0:11:07]} 15. h3 {[%emt 0:05:07]} b5 {[%emt 0:02:38]} 16. cxb5 {[%emt 0:08:50]} Bxe4 {[%emt 0:01:06]} 17. Bd3 $11 {[%emt 0:00:28]} d5 {[%emt 0:03:53]} 18. Nc6 {[%emt 0:01:45]} Qxf4 {[%emt 0:00:43]} 19. Nxe7 {[%emt 0:08:50]} Kxe7 {[%emt 0:00:11]} 20. bxa6 {[%emt 0:02:48]} Rhd8 {[%emt 0:04:34]} 21. a7 {[%emt 0:08:47]} Kf8 {[%emt 0:01:17]} 22. Qe2 {[%emt 0:02:02]} Bxd3+ {[%emt 0:02:02]} 23. Qxd3 {[%emt 0:00:19]} Ne5 {[%emt 0:00:55]} 24. Qa6 {[%emt 0:02:42]} Nc4 {[%emt 0:01:11]} 25. Bc5+ {[%emt 0:05:18]} Kg8 {[%emt 0:00:18]} 26. Re2 {[%emt 0:03:55]} Qc7 {[%emt 0:03:52]} 27. Na4 {[%emt 0:01:14]} Ne4 {[%emt 0:01:16]} 28. Bb6 {[%emt 0:01:16]} Ncd2+ {[%emt 0:00:20]} 0-1

[Event "RUS-chT Premier League Women 2018"]
[Site "Sochi"]
[Date "2018.05.07"]
[Round "6"]
[White "Azimova, Karina"]
[Black "Styazhkina, Anna"]
[Result "1/2-1/2"]
[ECO "C49"]
[WhiteElo "2059"]
[BlackElo "2299"]
[Annotator "NA"]
[PlyCount "81"]
[EventDate "2018.??.??"]
[EventCountry "RUS"]
[SourceTitle "playchess.com"]
[Source "ChessBase"]
[SourceQuality "1"]
[TimeControl "40/5400+30:1800+30"]

1. e4 {[%emt 0:00:00]} e5 {[%emt 0:00:05]} 2. Nf3 {[%emt 0:00:00]} Nc6 {[%emt 0:00:08]} 3. Nc3 {[%emt 0:00:00]} Nf6 {[%emt 0:00:12]} 4. Bb5 {[%emt 0:00:00]} Bb4 {[%emt 0:00:29] LiveBook: 2001 Games} 5. O-O {[%emt 0:00:06]} O-O {[%emt 0:00:11]} 6. Bxc6 {[%emt 0:00:19]} dxc6 {[%emt 0:02:16]} 7. Nxe5 {[%emt 0:00:39]} Bxc3 {[%emt 0:01:35] C49: Four Knights: 4 Bb5 Bb4} (7... Re8 8. Nd3 Bxc3 9. dxc3 Nxe4 10. Bf4 Ng5 11. Re1 Ne6 12. Bg3 b6 13. Nf4 Nxf4 14. Bxf4 Qxd1 15. Raxd1 Bf5 16. Rxe8+ Rxe8 17. Bxc7 Bxc2 {½-½ (30) Lin,C (2475)-Wen,Y (2613) China 2017}) 8. dxc3 {[%emt 0:00:04]} Nxe4 {[%emt 0:01:21]} 9. Bf4 {[%emt 0:00:25]} Qf6 {[%emt 0:05:28]} 10. Nd3 {[%emt 0:04:07]} Nd6 {[%emt 0:03:29]} 11. Qh5 $146 {[%emt 0:06:48]} ({Predecessor:} 11. Re1 Bf5 12. Qf3 Rfe8 {½-½ (12) Aronin,L-Zhukhovitsky,S Tbilisi (Georgia) 1957}) 11... b6 {[%emt 0:07:20]} 12. Rfe1 {[%emt 0:08:34]} Be6 {[%emt 0:09:38]} 13. Be5 {[%emt 0:16:33]} Qg6 {[%emt 0:04:47]} 14. Qxg6 {[%emt 0:06:58]} hxg6 {[%emt 0:00:08]} 15. Nb4 {[%emt 0:04:55]} Nc4 {[%emt 0:20:50]} 16. Nxc6 {[%emt 0:12:22]} Rfe8 {[%emt 0:02:35]} 17. b3 {[%emt 0:11:12]} Na3 {[%emt 0:03:18]} 18. Nd4 {[%emt 0:08:05]} c5 {[%emt 0:00:56]} 19. Nxe6 {[%emt 0:00:07]} Rxe6 $14 {[%emt 0:00:09]} 20. Bf4 {[%emt 0:01:41]} Rae8 {[%emt 0:03:48]} 21. Kf1 {[%emt 0:00:44]} Nxc2 {[%emt 0:06:09]} 22. Rxe6 {[%emt 0:00:07]} Rxe6 {[%emt 0:00:11]} 23. Rc1 {[%emt 0:01:13]} Na3 {[%emt 0:00:41]} 24. c4 {[%emt 0:00:22]} f6 {[%emt 0:10:33]} 25. Bd2 {[%emt 0:02:51]} Rd6 {[%emt 0:12:18]} 26. Bc3 {[%emt 0:00:44]} b5 {[%emt 0:00:09]} 27. Bb2 {[%emt 0:07:31]} Ra6 {[%emt 0:03:18]} 28. cxb5 {[%emt 0:02:29]} Nxb5 {[%emt 0:00:16]} 29. Rxc5 {[%emt 0:02:07]} Rxa2 {[%emt 0:01:17]} 30. Rxb5 {[%emt 0:01:51]} Rxb2 {[%emt 0:00:09]} 31. Ra5 {[%emt 0:00:11]} Rxb3 {[%emt 0:00:09]} 32. Rxa7 {[%emt 0:00:04]} Rb2 {[%emt 0:00:15]} 33. h4 {[%emt 0:00:52]} Rb1+ {[%emt 0:00:51]} 34. Ke2 {[%emt 0:00:01]} Rb2+ {[%emt 0:00:06]} 35. Kf1 {[%emt 0:00:01]} Rb1+ {[%emt 0:00:06]} 36. Ke2 {[%emt 0:00:01]} Rb2+ {[%emt 0:00:07]} 37. Kf1 {[%emt 0:00:01]} Rb1+ {[%emt 0:00:12]} 38. Ke2 {[%emt 0:00:01]} Rb2+ {[%emt 0:00:04]} 39. Kf1 {[%emt 0:00:01]} Rb1+ {[%emt 0:00:06]} 40. Ke2 {[%emt 0:00:00]} Rb2+ {[%emt 0:00:07]} 41. Kf1 1/2-1/2